[Event "Czech Extraliga 2023-24"]
[Site "Czech Republic"]
[Date "2024.02.11"]
[Round "8.5"]
[White "Smolik, Jachym"]
[Black "Miesbauer, Jan"]
[Result "1-0"]
[ECO "E42"]
[WhiteElo "2378"]
[BlackElo "2392"]
[Annotator "TA"]
[PlyCount "47"]
[EventDate "2023.10.14"]
[EventCountry "CZE"]
[SourceTitle "playchess.com"]
[Source "ChessBase"]
[SourceQuality "1"]
[TimeControl "40/5400+30:1800+30"]

{[%evp 17,47,41,39,21,47,60,68,64,68,47,39,42,42,35,30,58,75,63,65,67,189,204,542,472,469,464,455,299,306,283,1111,1088]} 1. d4 {[%emt 0:01:23]} Nf6 {[%emt 0:00:06]} 2. c4 {[%emt 0:00:07]} e6 {[%emt 0:00:14]} 3. Nc3 {[%emt 0:00:09]} Bb4 {[%emt 0:01:28]} 4. e3 {[%emt 0:00:07]} c5 {[%emt 0:01:25]} 5. Nge2 {[%emt 0:00:09]} cxd4 {[%emt 0:06:24]} 6. exd4 {[%emt 0:00:34]} d5 {[%emt 0:00:29]} 7. a3 {[%emt 0:00:06]} Bxc3+ {[%emt 0:00:40]} 8. Nxc3 {[%emt 0:00:02]} Nc6 {[%emt 0:02:55]} 9. c5 {[%emt 0:03:55]} O-O {[%emt 0:08:33]} 10. Be2 {[%emt 0:10:30]} b6 {[%emt 0:03:17]} 11. b4 {[%emt 0:06:36]} e5 {[%emt 0:08:51]} 12. dxe5 {[%emt 0:03:04] White is slightly better.} Nxe5 {[%emt 0:00:53]} 13. Bf4 {[%emt 0:06:05]} Re8 {[%emt 0:03:05]} 14. O-O $1 {[%emt 0:02:48][%cal Bh1f1,Bf1e1,Be1e5][%mdl 32]} bxc5 {[%emt 0:04:23]} 15. bxc5 {[%emt 0:00:12]} d4 {[%emt 0:02:39] [#] ...Ng6 would now be deadly.} 16. Bb5 {[%emt 0:16:05] This pair of bishops is nice.} Re7 {[%emt 0:04:01]} 17. Re1 {[%emt 0:11:33]} Bg4 {[%emt 0:08:57]} 18. f3 $36 {[%emt 0:10:12][%mdl 2048] White is pushing.} d3 {[%emt 0:00:22] [#] Loses the game.} 19. Qd2 $1 $18 {[%emt 0:14:47]} (19. Bxe5 Rxe5 20. Qxd3 (20. Rxe5 Qd4+ 21. Kh1 Qxe5 $11) 20... Rxc5 21. Qxd8+ Rxd8 $16) (19. Rxe5 Qd4+ 20. Kh1 Rxe5 21. Bxe5 Qxe5 22. Qxd3 Bf5 $11) 19... Bxf3 $2 {[%emt 0:16:33]} (19... Qd4+ 20. Be3 Qd8) 20. Bxe5 {[%emt 0:00:42]} Rxe5 {[%emt 0:00:15]} 21. Rxe5 {[%emt 0:00:52]} Qd4+ {[%emt 0:00:16]} 22. Qe3 {[%emt 0:00:07]} Qxc3 {[%emt 0:00:10]} 23. Re1 {[%emt 0:02:43] Re8+ would kill now.} (23. Qxd3 $2 {too greedy.} Qxa1+ 24. Qf1 Qxe5 $19) ({But not} 23. Rc1 Qb2 24. gxf3 (24. Bxd3 $2 Qxg2#) 24... d2) 23... Be2 $2 {[%emt 0:01:33]} (23... Be4 24. Rxe4 Nxe4 25. Qxe4 (25. Bxd3 f5 $16) 25... Qxc5+ 26. Kh1 Rd8) 24. Rxe2 $1 {[%emt 0:00:12] Weighted Error Value: White=0.26 (precise) /Black=0.66.  Mistake:       	---       	Black=3      Inaccurate:     	White=1     	Black=1      OK:         	White=5     	Black=4      Best:        	White=1     	Black=2      Strong:       	White=2     	---} 1-0

[Event "Czech Extraliga 2023-24"]
[Site "Czech Republic"]
[Date "2024.02.11"]
[Round "8.6"]
[White "NOV10 Zilka Stepan GM"]
[Black "UNI7 Jurcik Martin IM"]
[Result "1-0"]
[ECO "C42"]
[WhiteElo "2599"]
[BlackElo "2367"]
[Annotator "NA"]
[PlyCount "59"]
[EventDate "2023.10.14"]
[EventCountry "CZE"]
[SourceTitle "playchess.com"]
[Source "ChessBase"]
[SourceQuality "1"]
[TimeControl "40/5400+30:1800+30"]

1. e4 {[%emt 0:00:07]} e5 {[%emt 0:00:33]} 2. Nf3 {[%emt 0:00:07]} Nf6 {[%emt 0:00:30]} 3. Nxe5 {[%emt 0:00:09]} d6 {[%emt 0:00:24]} 4. Nf3 {[%emt 0:00:05]} Nxe4 {[%emt 0:00:20]} 5. d4 {[%emt 0:00:11]} Bg4 {[%emt 0:02:12]} 6. Bd3 {[%emt 0:02:27]} Nf6 {[%emt 0:00:40]} 7. O-O {[%emt 0:02:24]} Be7 {[%emt 0:00:23]} 8. Re1 {[%emt 0:00:37]} O-O {[%emt 0:00:58]} 9. Bg5 {[%emt 0:00:25]} Nbd7 {[%emt 0:04:27]} 10. Nbd2 {[%emt 0:00:58]} Re8 {[%emt 0:01:50]} 11. c3 {[%emt 0:02:54]} c6 {[%emt 0:03:59]} 12. Qc2 {[%emt 0:03:30]} Nf8 {[%emt 0:02:59]} 13. h3 {[%emt 0:02:42]} Bh5 {[%emt 0:01:23]} 14. Nh4 {[%emt 0:06:34]} Nd5 {[%emt 0:05:34]} 15. Bxe7 {[%emt 0:00:51]} Rxe7 {[%emt 0:00:25]} 16. Rxe7 {[%emt 0:13:04]} Nxe7 {[%emt 0:15:51]} 17. g3 {[%emt 0:05:58]} Qd7 {[%emt 0:07:11]} 18. Re1 {[%emt 0:00:54]} Re8 {[%emt 0:02:02]} 19. Kh2 {[%emt 0:01:32]} Nc8 {[%emt 0:06:52]} 20. Bf5 {[%emt 0:05:45]} Qd8 {[%emt 0:17:51]} 21. Rxe8 {[%emt 0:00:10]} Qxe8 {[%emt 0:00:07]} 22. Bxc8 {[%emt 0:00:03]} Qxc8 {[%emt 0:00:08]} 23. Qf5 {[%emt 0:00:06]} Qe6 {[%emt 0:00:27]} 24. Qxh5 {[%emt 0:01:19]} Qxa2 {[%emt 0:07:37]} 25. Ne4 {[%emt 0:08:23]} Qxb2 {[%emt 0:01:18]} 26. Nf5 {[%emt 0:00:30]} Qa2 {[%emt 0:09:53]} 27. Qg5 {[%emt 0:04:19]} Ne6 {[%emt 0:05:59]} 28. Qe7 {[%emt 0:00:06]} Nf8 {[%emt 0:00:18]} 29. Qe8 {[%emt 0:00:58]} g6 {[%emt 0:00:26]} 30. Nf6+ {[%emt 0:38:22]} 1-0

[Event "Czech Extraliga 2023-24"]
[Site "Czech Republic"]
[Date "2024.02.11"]
[Round "8.6"]
[White "Kraus, Tomas"]
[Black "Jirovsky, Milos"]
[Result "1/2-1/2"]
[ECO "B22"]
[WhiteElo "2484"]
[BlackElo "2458"]
[Annotator "TA"]
[PlyCount "28"]
[EventDate "2023.10.14"]
[EventCountry "CZE"]
[SourceTitle "playchess.com"]
[Source "ChessBase"]
[SourceQuality "1"]
[TimeControl "40/5400+30:1800+30"]

{[%evp 13,28,22,34,28,23,0,70,26,52,68,48,25,32,39,32,13,26]} 1. e4 {[%emt 0:00:04]} c5 {[%emt 0:00:19]} 2. Nf3 {[%emt 0:00:17]} Nc6 {[%emt 0:00:11]} 3. c3 {[%emt 0:00:31]} d5 {[%emt 0:04:50]} 4. exd5 {[%emt 0:00:21]} Qxd5 {[%emt 0:00:02]} 5. d4 {[%emt 0:00:13]} Nf6 {[%emt 0:01:28]} 6. dxc5 {[%emt 0:01:10]} Qxc5 {[%emt 0:04:45]} 7. Na3 {[%emt 0:00:22][%cal Bb1a3,Ba3b5,Bb5d6][%mdl 32]} e5 {[%emt 0:10:12]} 8. Nb5 {[%emt 0:12:18]} Qe7 {[%emt 0:01:08] Prevents Nc7+} 9. Be3 {[%emt 0:06:25]} Ng4 {[%emt 0:02:46]} (9... a6 $11 10. Qa4 Rb8) 10. Qa4 $1 $14 {[%emt 0:05:19] White is more active. White is slightly better.} Nxe3 {[%emt 0:04:52]} 11. fxe3 {[%emt 0:00:14]} g6 $1 {[%emt 0:00:46]} 12. Rd1 {[%emt 0:26:58] [#] Bc4 is the strong threat.} (12. O-O-O $5 Bh6 13. Nd6+ Kf8 14. Bb5 $11) 12... Bh6 {[%emt 0:00:36]} 13. Nd6+ {[%emt 0:00:08]} Kf8 {[%emt 0:00:07]} 14. Bb5 {[%emt 0:15:01]} e4 $1 {[%emt 0:04:05] Weighted Error Value: White=0.08 (flawless) /Black=0.19 (very precise) .  Mistake:       	---       	Black=1      OK:         	White=1     	Black=2      Best:        	White=1     	Black=2      Strong:       	White=1     	Black=2} 1/2-1/2

[Event "Czech Extraliga 2023-24"]
[Site "Czech Republic"]
[Date "2024.02.11"]
[Round "8.6"]
[White "Cech, Pavel"]
[Black "Straka, Vojtech"]
[Result "1/2-1/2"]
[ECO "D36"]
[WhiteElo "2346"]
[BlackElo "2439"]
[Annotator "TA"]
[PlyCount "28"]
[EventDate "2023.10.14"]
[EventCountry "CZE"]
[SourceTitle "playchess.com"]
[Source "ChessBase"]
[SourceQuality "1"]
[TimeControl "40/5400+30:1800+30"]

{[%evp 15,28,-10,-13,-44,-39,-52,-45,-55,-34,-51,-64,-60,-55,-66,-12]} 1. d4 {[%emt 0:00:06]} d5 {[%emt 0:00:13]} 2. c4 {[%emt 0:00:21]} c6 {[%emt 0:00:08]} 3. Nf3 {[%emt 0:00:18]} Nf6 {[%emt 0:00:10]} 4. Nc3 {[%emt 0:00:11]} e6 {[%emt 0:00:22]} 5. cxd5 {[%emt 0:01:01]} exd5 {[%emt 0:00:23]} 6. Bg5 {[%emt 0:00:10]} Be7 {[%emt 0:00:16]} 7. Qc2 {[%emt 0:00:52]} g6 {[%emt 0:00:18]} 8. Bxf6 {[%emt 0:00:30]} Bxf6 {[%emt 0:00:10]} 9. e4 {[%emt 0:00:08]} O-O {[%emt 0:08:45] Black is slightly better.} 10. e5 {[%emt 0:24:15]} Bg7 {[%emt 0:00:32]} 11. Be2 {[%emt 0:00:30]} f6 {[%emt 0:08:42]} 12. O-O {[%emt 0:09:17]} Nd7 {[%emt 0:04:31]} 13. exf6 {[%emt 0:00:10]} Nxf6 {[%emt 0:00:16]} 14. Ne5 {[%emt 0:02:55]} Qb6 {[%emt 0:17:19] Weighted Error Value: White=0.11 (very precise) /Black=0.05 (flawless) .  Mistake:       	---       	Black=1      OK:         	White=3     	Black=2} ({Better is} 14... Nd7 $15 15. Nf3 Nf6) 1/2-1/2

[Event "Czech Extraliga 2023-24"]
[Site "Czech Republic"]
[Date "2024.02.11"]
[Round "8.6"]
[White "Berezjuk, Sergej"]
[Black "Biolek, Richard Jr."]
[Result "1/2-1/2"]
[ECO "B53"]
[WhiteElo "2342"]
[BlackElo "2416"]
[Annotator "TA"]
[PlyCount "51"]
[EventDate "2023.10.14"]
[EventCountry "CZE"]
[SourceTitle "playchess.com"]
[Source "ChessBase"]
[SourceQuality "1"]
[TimeControl "40/5400+30:1800+30"]

{[%evp 21,51,8,14,13,50,58,60,49,51,42,88,43,69,65,58,65,76,45,75,65,99,22,24,14,7,8,1,12,12,5,20,0]} 1. e4 {[%emt 0:00:03]} c5 {[%emt 0:00:04]} 2. Nf3 {[%emt 0:00:15]} d6 {[%emt 0:00:03]} 3. d4 {[%emt 0:00:56]} cxd4 {[%emt 0:00:04]} 4. Qxd4 {[%emt 0:00:06]} Nc6 {[%emt 0:04:16]} 5. Bb5 {[%emt 0:00:20]} Bd7 {[%emt 0:00:20]} 6. Bxc6 {[%emt 0:00:08]} Bxc6 {[%emt 0:00:05]} 7. Nc3 {[%emt 0:00:07]} Nf6 {[%emt 0:19:12]} 8. Bg5 {[%emt 0:00:38]} e6 {[%emt 0:00:02]} 9. O-O-O {[%emt 0:00:10]} Be7 {[%emt 0:00:29]} 10. Qd3 {[%emt 0:03:48]} O-O {[%emt 0:06:17]} 11. Nd4 {[%emt 0:00:21]} Rc8 {[%emt 0:13:04]} 12. f4 {[%emt 0:03:28]} Ng4 {[%emt 0:15:36]} 13. Bxe7 {[%emt 0:12:52]} Qxe7 {[%emt 0:00:03]} 14. Qe2 {[%emt 0:01:01] Dodges Nf2. White is slightly better.} Nf6 {[%emt 0:02:27]} 15. g4 {[%emt 0:02:06]} g6 {[%emt 0:06:38]} (15... d5 $14) 16. Rhg1 {[%emt 0:03:00] White is more active.} e5 {[%emt 0:10:29]} 17. Nxc6 {[%emt 0:04:35]} bxc6 {[%emt 0:00:02]} 18. f5 {[%emt 0:02:13]} Kh8 {[%emt 0:07:02]} 19. h4 {[%emt 0:20:21]} Rg8 {[%emt 0:00:26]} 20. Qf3 {[%emt 0:03:36]} Rcd8 {[%emt 0:03:22]} 21. Rg2 {[%emt 0:11:48]} (21. g5 $16 Nh5 22. Kb1) 21... d5 $11 {[%emt 0:03:57]} 22. fxg6 {[%emt 0:01:12] [#] g5 would now be deadly.} dxe4 {[%emt 0:02:13] The position is equal.} 23. Nxe4 {[%emt 0:06:17]} Rxd1+ {[%emt 0:00:04]} 24. Kxd1 {[%emt 0:00:09]} Nxe4 {[%emt 0:00:40]} 25. Qxe4 {[%emt 0:00:29] Hoping for gxf7.} Rxg6 {[%emt 0:01:03]} 26. c3 {[%emt 0:02:34] Weighted Error Value: White=0.17 (very precise) /Black=0.13 (very precise) .  Mistake:       	White=1     	Black=1      Inaccurate:     	White=2     	Black=4      OK:         	White=4     	Black=3      Best:        	---       	Black=1} 1/2-1/2

[Event "Czech Extraliga 2023-24"]
[Site "Czech Republic"]
[Date "2024.02.11"]
[Round "8.6"]
[White "Kulhanek, Tomas"]
[Black "Kaczur, Florian"]
[Result "0-1"]
[ECO "B51"]
[WhiteElo "2316"]
[BlackElo "2506"]
[Annotator "TA"]
[PlyCount "66"]
[EventDate "2023.10.14"]
[EventCountry "CZE"]
[SourceTitle "playchess.com"]
[Source "ChessBase"]
[SourceQuality "1"]
[TimeControl "40/5400+30:1800+30"]

{[%evp 10,66,18,14,24,-1,-12,-14,0,0,0,0,2,-32,-35,-38,-6,-30,0,-3,0,0,0,0,0,-33,0,0,0,-29,-12,-21,-14,-4,-15,-11,-14,-29,-33,-41,0,0,0,0,0,0,0,0,0,0,0,0,9,-455,-455,-433,-436,-548,-541]} 1. e4 {[%emt 0:00:03]} c5 {[%emt 0:00:33]} 2. Nf3 {[%emt 0:00:24]} d6 {[%emt 0:00:23]} 3. Bb5+ {[%emt 0:00:30]} Nd7 {[%emt 0:00:32]} 4. c3 {[%emt 0:00:34]} Ngf6 {[%emt 0:00:40]} 5. Qe2 {[%emt 0:00:40]} a6 {[%emt 0:04:08]} 6. Ba4 {[%emt 0:00:06]} e6 {[%emt 0:05:34]} 7. d4 {[%emt 0:01:47]} cxd4 {[%emt 0:11:43]} 8. cxd4 {[%emt 0:00:28]} Qa5+ {[%emt 0:00:06] The position is equal.} 9. Nc3 {[%emt 0:00:15]} b5 {[%emt 0:00:12]} 10. Bb3 {[%emt 0:03:18]} b4 {[%emt 0:01:39]} 11. Nb1 {[%emt 0:02:58]} (11. Na4 $5) 11... Bb7 {[%emt 0:02:06]} 12. Nbd2 {[%emt 0:01:23]} Be7 {[%emt 0:07:54]} 13. O-O {[%emt 0:06:12][%cal Od4d5]} O-O {[%emt 0:03:36]} 14. Bc2 {[%emt 0:11:03]} Rfc8 {[%emt 0:06:12]} 15. Bd3 {[%emt 0:00:30]} Qb6 {[%emt 0:09:23]} 16. b3 {[%emt 0:14:06]} a5 {[%emt 0:00:59]} 17. Bb2 {[%emt 0:05:49]} d5 {[%emt 0:05:44]} 18. e5 {[%emt 0:03:26]} Ne8 {[%emt 0:00:06]} 19. Rfc1 {[%emt 0:02:32]} a4 {[%emt 0:06:10]} 20. bxa4 {[%emt 0:11:11]} Rxa4 {[%emt 0:02:17]} 21. Rxc8 {[%emt 0:07:41]} Bxc8 {[%emt 0:00:30]} 22. Qd1 {[%emt 0:03:13]} Ra8 {[%emt 0:00:39]} 23. Qb3 {[%emt 0:09:05]} Ba6 {[%emt 0:10:46]} 24. Ne1 {[%emt 0:00:50]} f6 {[%emt 0:04:50]} 25. exf6 {[%emt 0:02:19]} Nexf6 {[%emt 0:00:49]} 26. Bxa6 {[%emt 0:01:07]} Qxa6 {[%emt 0:01:17]} 27. Nd3 {[%emt 0:02:34]} Qa5 {[%emt 0:01:44]} 28. Nf4 {[%emt 0:01:01]} Nf8 {[%emt 0:00:36]} 29. Qe3 {[%emt 0:01:48]} Bd6 {[%emt 0:01:06]} 30. h3 {[%emt 0:01:52]} Qc7 {[%emt 0:02:43]} 31. Nxe6 {[%emt 0:02:34][%mdl 8192] [#]} (31. Nd3 $1 $11 {and White has nothing to worry.}) 31... Qc2 $19 {[%emt 0:00:04] Black is clearly winning.} 32. Nxf8 {[%emt 0:00:20]} Bxf8 {[%emt 0:00:30]} 33. Bc1 {[%emt 0:03:29]} Re8 $1 {[%emt 0:00:20] Weighted Error Value: White=0.35/Black=0.08 (flawless) .  Loses game:     	White=1     	---        Inaccurate:     	White=3     	Black=4      OK:         	White=10    	Black=11     Best:        	White=1     	Black=1      Strong:       	---       	Black=1} ({And not} 33... Rxa2 34. Rxa2 Qxa2 35. Qe6+ Kh8 36. Qc8 $11) 0-1

[Event "Czech Extraliga 2023-24"]
[Site "Czech Republic"]
[Date "2024.02.11"]
[Round "8.7"]
[White "Gnojek, Petr"]
[Black "Svanda, Ondrej"]
[Result "0-1"]
[ECO "D38"]
[WhiteElo "2428"]
[BlackElo "2369"]
[Annotator "TA"]
[PlyCount "134"]
[EventDate "2023.10.14"]
[EventCountry "CZE"]
[SourceTitle "playchess.com"]
[Source "ChessBase"]
[SourceQuality "1"]
[TimeControl "40/5400+30:1800+30"]

{[%evp 38,134,47,41,45,41,26,40,36,31,47,31,50,0,0,0,0,0,56,59,104,41,162,158,147,148,127,125,133,126,132,64,64,71,65,83,81,37,34,35,45,35,29,8,12,14,25,0,0,0,0,0,0,0,0,0,0,0,0,0,0,-49,-56,-393,-412,-545,-545,-545,-545,-508,-397,-410,0,-29977,-29978,-29980,-29981,-29981,-29982,-29982,-29983,-29983,-29984,-29984,-29985,-29985,-29986,-29986,-29985,-29985,-29986,-29986,-29987,-29987,-29988,-29988,-29989,-29989,-29988]} 1. d4 {[%emt 0:00:06]} d5 {[%emt 0:00:11]} 2. c4 {[%emt 0:00:10]} e6 {[%emt 0:00:09]} 3. Nf3 {[%emt 0:00:20]} Nf6 {[%emt 0:00:05]} 4. Nc3 {[%emt 0:00:05]} Nbd7 {[%emt 0:00:06]} 5. Bg5 {[%emt 0:00:15]} Bb4 {[%emt 0:00:47]} 6. e3 {[%emt 0:05:12]} c5 {[%emt 0:00:26]} 7. cxd5 {[%emt 0:02:33]} exd5 {[%emt 0:00:02]} 8. Bd3 {[%emt 0:00:09]} Qa5 {[%emt 0:01:42]} 9. Qc2 {[%emt 0:03:46]} c4 {[%emt 0:02:11]} 10. Bf5 {[%emt 0:00:07]} O-O {[%emt 0:00:41]} 11. O-O {[%emt 0:03:51]} Re8 {[%emt 0:00:06]} 12. Nd2 {[%emt 0:11:02]} g6 {[%emt 0:00:10]} 13. Bh3 {[%emt 0:03:30]} Kg7 {[%emt 0:00:01]} 14. a3 {[%emt 0:06:33]} Bxc3 {[%emt 0:04:56]} 15. Qxc3 {[%emt 0:01:14]} Qxc3 {[%emt 0:16:18]} 16. bxc3 {[%emt 0:00:05]} Nb6 {[%emt 0:01:14]} 17. Bxc8 {[%emt 0:02:19]} Raxc8 {[%emt 0:01:04]} 18. Bxf6+ {[%emt 0:00:05]} Kxf6 {[%emt 0:00:07]} 19. a4 {[%emt 0:00:04]} Nd7 {[%emt 0:23:02]} 20. Rab1 {[%emt 0:01:13]} b6 {[%emt 0:00:21]} 21. Rb5 {[%emt 0:00:25]} Ke6 {[%emt 0:00:03]} 22. f3 {[%emt 0:00:04]} a6 {[%emt 0:05:49]} 23. Rb4 {[%emt 0:02:23]} f5 {[%emt 0:05:38]} 24. Re1 {[%emt 0:10:58]} Kd6 {[%emt 0:00:17]} 25. Kf2 {[%emt 0:01:10]} ({White should try} 25. e4 $14) 25... Rb8 $11 {[%emt 0:07:52]} 26. Reb1 {[%emt 0:04:26]} Kc6 {[%emt 0:10:37]} 27. e4 {[%emt 0:01:29]} Rbc8 {[%emt 0:00:01]} (27... Nf6 $11) 28. h4 $14 {[%emt 0:03:42]} Kd6 {[%emt 0:04:03] [#]} 29. h5 {[%emt 0:05:36]} (29. e5+ $1 $16 {[%mdl 512]} Kc6 30. Nf1) 29... Rf8 {[%emt 0:04:52]} (29... fxe4 $14 30. fxe4 g5 31. e5+ Ke7) 30. exd5 {[%emt 0:04:16]} Kxd5 {[%emt 0:00:08]} 31. Re1 {[%emt 0:00:04]} Rf7 {[%emt 0:05:01]} 32. hxg6 {[%emt 0:02:55]} hxg6 {[%emt 0:00:00]} 33. Nf1 {[%emt 0:00:20]} f4 {[%emt 0:00:32]} 34. Nh2 {[%emt 0:00:16]} (34. Rbb1 $16) 34... Kd6 $14 {[%emt 0:03:52]} 35. Ng4 {[%emt 0:00:36]} Rf5 {[%emt 0:00:01]} 36. Nh6 {[%emt 0:05:03]} Rf6 {[%emt 0:00:36]} 37. Re4 {[%emt 0:00:04]} g5 {[%emt 0:03:19]} 38. Ng4 {[%emt 0:00:08]} Re6 {[%emt 0:00:01]} 39. Rxe6+ {[%emt 0:15:25]} Kxe6 {[%emt 0:00:01]} 40. Rb1 {[%emt 0:00:06]} Kd6 {[%emt 0:01:56]} 41. Ke2 {[%emt 0:37:10]} b5 {[%emt 0:21:47]} 42. a5 {[%emt 0:00:00]} Rh8 {[%emt 0:03:59]} 43. Kd2 {[%emt 0:00:00]} Nb8 {[%emt 0:00:26]} 44. Ne5 {[%emt 0:00:00]} Rh2 {[%emt 0:00:04]} 45. Rg1 $1 {[%emt 0:00:00]} Nc6 {[%emt 0:00:23]} 46. Nf7+ {[%emt 0:00:00]} Ke6 {[%emt 0:02:44]} 47. Nxg5+ {[%emt 0:00:00]} Kf5 {[%emt 0:00:02]} 48. Nh3 {[%emt 0:00:00]} Nxa5 {[%emt 0:00:10]} 49. Ke2 {[%emt 0:00:00]} (49. Nf2 $11) 49... Nb3 $15 {[%emt 0:00:59]} 50. Kf2 $2 {[%emt 0:00:00][%mdl 8192]} (50. d5 $15) 50... b4 $1 $19 {[%emt 0:02:28]} 51. Re1 {[%emt 0:00:28]} bxc3 {[%emt 0:00:02]} 52. d5 {[%emt 0:00:02]} c2 $1 {[%emt 0:01:47]} 53. d6 {[%emt 0:00:03] [#]} Nc5 $1 {[%emt 0:00:02]} (53... c1=R $2 54. Rxc1 Ke6 (54... Nxc1 $2 55. d7 $18) 55. Rxc4 $18 (55. Nxf4+ Kxd6 56. Rxc4 a5 $16)) (53... c1=N $2 54. d7 Nd3+ 55. Kg1 $18) 54. Kg1 {[%emt 0:03:31] [#]} Nd3 $2 {[%emt 0:00:21]} ({Better is} 54... Rxh3 $1 $19 55. Rc1 Rh6 56. Rxc2 Rxd6 57. Rxc4 Rd5) 55. d7 $2 {[%emt 0:01:35][%mdl 8192]} (55. Kxh2 $11 Nxe1 56. d7) 55... Rxg2+ {[%emt 0:01:29]} (55... Nxe1 56. Kxh2 c1=Q 57. d8=Q $11) 56. Kxg2 {[%emt 0:00:56]} Nxe1+ {[%emt 0:00:01]} 57. Kh1 {[%emt 0:01:18]} c1=Q {[%emt 0:00:02]} (57... c1=B $2 {is the wrong capture.} 58. d8=Q (58. d8=B $2 {loses.} c3 $19) 58... Nxf3 59. Qc8+ Kf6 60. Qxc4 $18 (60. Qxa6+ Kf5 $18)) 58. d8=Q {[%emt 0:00:05]} Nxf3+ {[%emt 0:00:13]} 59. Kg2 {[%emt 0:00:02]} Qd2+ {[%emt 0:00:04]} 60. Qxd2 {[%emt 0:00:11]} Nxd2 {[%emt 0:00:01]} 61. Kf2 {[%emt 0:00:09]} Ne4+ {[%emt 0:00:52]} 62. Ke2 {[%emt 0:00:07]} a5 {[%emt 0:00:34]} 63. Ng1 {[%emt 0:00:45]} a4 {[%emt 0:00:07]} 64. Nf3 {[%emt 0:00:24]} a3 {[%emt 0:00:12]} 65. Nd4+ {[%emt 0:00:07]} Kg4 {[%emt 0:00:08]} 66. Nc2 {[%emt 0:00:05]} a2 {[%emt 0:00:15]} 67. Ke1 {[%emt 0:00:09]} Nc5 {[%emt 0:00:53]} 0-1